fUSD/lending_fUSD_20240119
["ID","MTS","AMOUNT","RATE_DAILY","PERIOD"]
[312202308,1705684350231,-500.0,0.00026849,2]
[312202309,1705684350240,-198.43081089,0.00026849,2]
[312202310,1705684350249,-1617.17,0.00026849,2]
[312202311,1705684350258,-753.21,0.00026849,2]
[312202312,1705684350267,-982.23,0.00026849,2]
[312202313,1705684350277,-763.08,0.00026849,2]
[312202314,1705684350286,-1344.83,0.00026849,2]
[312202315,1705684350295,-597.5,0.00026849,2]
[312202316,1705684350305,-512.26,0.00026849,2]
[312202317,1705684350314,-569.27,0.00026849,2]
[312202318,1705684350323,-742.83,0.00026849,2]
[312202319,1705684350332,-2112.76,0.00026849,2]
[312202320,1705684350341,-500.0,0.00026849,2]
[312202321,1705684350350,-4987.06,0.00026849,2]
[312202322,1705684350359,-1184.32,0.00026849,2]
[312202323,1705684350369,-2960.59,0.00026849,2]
[312202324,1705684350378,-500.0,0.00026849,2]
[312202325,1705684350387,-15338.55,0.00026849,2]
[312202326,1705684350396,-594.36,0.00026849,2]
[312202327,1705684350405,-2166.93,0.00026849,2]
[312202328,1705684350414,-500.0,0.00026849,2]
[312202329,1705684350423,-2307.01,0.00026849,2]
[312202330,1705684350432,-500.0,0.00026849,2]
[312202331,1705684350441,-1238.0,0.00026849,2]
[312202332,1705684350450,-582.28,0.00026849,2]
[312202333,1705684350459,-861.16,0.00026849,2]
[312202334,1705684350468,-970.11,0.00026849,2]
[312202335,1705684350477,-1309.07,0.00026849,2]
[312202336,1705684350563,-1682.88,0.00026849,2]
[312202337,1705684350572,-687.38,0.00026849,2]
[312202338,1705684350581,-500.0,0.00026849,2]
[312202339,1705684350590,-500.0,0.00026849,2]
[312202340,1705684350599,-966.15,0.00026849,2]
[312202341,1705684350608,-1452.73,0.00026849,2]
[312202342,1705684350617,-543.77,0.00026849,2]
[312202343,1705684350625,-687.66,0.00026849,2]
[312202344,1705684350634,-789.87,0.00026849,2]
[312202345,1705684350643,-1600.24,0.00026849,2]
[312202346,1705684350652,-580.5,0.00026849,2]
[312202347,1705684350661,-724.98,0.00026849,2]
[312202348,1705684350670,-566.64,0.00026849,2]
[312202349,1705684350678,-500.0,0.00026849,2]
[312202350,1705684350687,-500.0,0.00026849,2]
[312202351,1705684350697,-1472.8,0.00026849,2]
[312202352,1705684350706,-2353.38,0.00026849,2]
[312202353,1705684350715,-982.82,0.00026849,2]
[312202354,1705684350724,-1029.65,0.00026849,2]
[312202355,1705684350733,-150.38314785,0.00026849,2]
[312202356,1705684350742,-1034.15,0.00026849,2]
[312202357,1705684350751,-500.0,0.00026849,2]
[312202358,1705684350760,-1105.06,0.00026849,2]
[312202359,1705684350769,-511.82,0.00026849,2]
[312202360,1705684350778,-2707.99,0.00026849,2]
[312202361,1705684350787,-1045.7,0.00026849,2]
[312202362,1705684350798,-1777.84,0.00026849,2]
[312202363,1705684350809,-536.83,0.00026849,2]
[312202364,1705684350818,-10382.29,0.00026849,2]
[312202365,1705684350826,-1339.3,0.00026849,2]
[312202366,1705684350835,-907.28,0.00026849,2]
[312202367,1705684350844,-3979.15,0.00026849,2]
[312202368,1705684350853,-1150.48,0.00026849,2]
[312202369,1705684350862,-1514.36,0.00026849,2]
[312202370,1705684350871,-524.59,0.00026849,2]
[312202371,1705684350880,-778.28,0.00026849,2]
[312202372,1705684350889,-848.6,0.00026849,2]
[312202373,1705684350897,-5877.42,0.00026849,2]
[312202374,1705684350906,-635.87,0.00026849,2]
[312202375,1705684350915,-733.77,0.00026849,2]
[312202376,1705684350924,-2258.64,0.00026849,2]
[312202377,1705684350932,-490.3334459,0.00026849,2]
[312202378,1705684350941,-963.32,0.00026849,2]
[312202379,1705684350950,-689.61,0.00026849,2]
[312202380,1705684350959,-3018.83,0.00026849,2]
[312202381,1705684350968,-649.04,0.00026849,2]
[312202382,1705684350977,-500.0,0.00026849,2]
[312202383,1705684350986,-5195.68599,0.000269,2]
[312202384,1705684350994,-158.68816156,0.00026924,2]
[312202385,1705684351003,-1500.0,0.00026946,2]
[312202386,1705684351012,-155.0,0.00027,2]
[312202387,1705684351021,-5000.0,0.00027,2]
[312202388,1705684351030,-203.0,0.00027,2]
[312202389,1705684351039,-300.0,0.00027,2]
[312202390,1705684351048,-416.19937194,0.00027,2]
[312202391,1705684351059,-1300.168139,0.00027,2]
[312202392,1705684351067,-204.0,0.00027,2]
[312202393,1705684351077,-206.0,0.00027,2]
[312202394,1705684351089,-150.0,0.00027,2]
[312202395,1705684351098,-150.0,0.00027,2]
[312202396,1705684351107,-202.0,0.00027011,13]
[312202397,1705684351115,-2053.0,0.00027082,2]
[312202398,1705684351124,-124082.4731429,0.00027086,2]
[312202399,1705684351133,-2145.8462392,0.00027086,2]
[312202400,1705684351142,-199.0,0.000271,5]
[312202401,1705684351151,-622.14,0.00027123,2]
[312202402,1705684351161,-542.14,0.00027123,2]
[312202403,1705684351170,-500.0,0.00027123,2]
[312202404,1705684351178,-542.59,0.00027123,2]
[312202405,1705684351187,-500.0,0.00027123,2]
[312202406,1705684351196,-730.0,0.00027123,2]
[312202407,1705684351205,-528.39,0.00027123,2]
[312202408,1705684351214,-542.09,0.00027123,2]
[312202409,1705684351223,-500.0,0.00027123,2]
[312202410,1705684351232,-676.04,0.00027123,2]
[312202411,1705684351242,-262.89681684,0.00027123,2]
[312202412,1705684351251,-808.53,0.00027123,2]
[312202413,1705684351259,-544.1,0.00027123,2]
[312202414,1705684351268,-807.4,0.00027123,2]
[312202415,1705684351277,-513.9,0.00027123,2]
[312202416,1705684351285,-1752.26,0.00027123,2]
[312202417,1705684351294,-565.26,0.00027123,2]
[312202418,1705684351304,-500.0,0.00027123,2]
[312202419,1705684351313,-638.62,0.00027123,2]
[312202420,1705684351322,-500.0,0.00027123,2]
[312202421,1705684351330,-702.27,0.00027123,2]
[312202422,1705684351339,-546.25,0.00027123,2]
[312202423,1705684351347,-500.0,0.00027123,2]
[312202424,1705684351357,-500.0,0.00027123,2]
[312202425,1705684351370,-500.0,0.00027123,2]
[312202426,1705684351379,-500.0,0.00027123,2]
[312202427,1705684351388,-1045.91,0.00027123,2]
[312202428,1705684351397,-500.0,0.00027123,2]
[312202429,1705684351406,-615.78,0.00027123,2]
[312202430,1705684351414,-546.84,0.00027123,2]
[312202431,1705684351423,-884.67,0.00027123,2]
[312202432,1705684351432,-679.98,0.00027123,2]
[312202433,1705684351440,-602.03,0.00027123,2]
[312202434,1705684351449,-500.0,0.00027123,2]
[312202435,1705684351458,-1736.83,0.00027123,2]
[312202436,1705684351467,-715.58,0.00027123,2]
[312202437,1705684351476,-648.18,0.00027123,2]
[312202438,1705684351485,-582.03,0.00027123,2]
[312202439,1705684351494,-581.09,0.00027123,2]
[312202440,1705684351503,-351.23713277,0.00027123,2]
[312202441,1705684351511,-588.13,0.00027123,2]
[312202442,1705684351520,-800.73,0.00027123,2]
[312202443,1705684351529,-524.92,0.00027123,2]
[312202444,1705684351538,-729.35,0.00027123,2]
[312202445,1705684351546,-798.17,0.00027123,2]
[312202446,1705684351556,-510.07,0.00027123,2]
[312202447,1705684351565,-594.92,0.00027123,2]
[312202448,1705684351574,-789.92,0.00027123,2]
[312202449,1705684351582,-500.0,0.00027123,2]
[312202450,1705684351591,-500.0,0.00027123,2]
[312202451,1705684351599,-547.54,0.00027123,2]
[312202452,1705684351609,-500.0,0.00027123,2]
[312202453,1705684351618,-836.55,0.00027123,2]
[312202454,1705684351626,-613.85,0.00027123,2]
[312202455,1705684351635,-563.98,0.00027123,2]
[312202456,1705684351643,-1354.55,0.00027123,2]
[312202457,1705684351653,-661.22,0.00027123,2]
[312202458,1705684351662,-500.0,0.00027123,2]
[312202459,1705684351670,-521.39,0.00027123,2]
[312202460,1705684351680,-649.06,0.00027123,2]
[312202461,1705684351689,-942.15,0.00027123,2]
[312202462,1705684351698,-500.0,0.00027123,2]
[312202463,1705684351707,-665.24,0.00027123,2]
[312202464,1705684351715,-509.47,0.00027123,2]
[312202465,1705684351724,-500.0,0.00027123,2]
[312202466,1705684351733,-567.16,0.00027123,2]
[312202467,1705684351742,-587.72,0.00027123,2]
[312202468,1705684351750,-609.03,0.00027123,2]
[312202469,1705684351759,-673.09,0.00027123,2]
[312202470,1705684351768,-738.2,0.00027123,2]
[312202471,1705684351777,-1257.45,0.00027123,2]
[312202472,1705684351786,-673.79,0.00027123,2]
[312202473,1705684351795,-624.73,0.00027123,2]
[312202474,1705684351806,-518.0,0.00027123,2]
[312202475,1705684351814,-500.0,0.00027123,2]
[312202476,1705684351823,-500.0,0.00027123,2]
[312202477,1705684351832,-634.3,0.00027123,2]
[312202478,1705684351841,-500.0,0.00027123,2]
[312202479,1705684351850,-821.92,0.00027123,2]
[312202480,1705684351859,-673.61,0.00027123,2]
[312202481,1705684351868,-161.78460644,0.00027123,2]
[312202482,1705684351876,-522.51,0.00027123,2]
[312202483,1705684351885,-543.84,0.00027123,2]
[312202484,1705684351894,-799.17,0.00027123,2]
[312202485,1705684351903,-862.29,0.00027123,2]
[312202486,1705684351911,-539.84,0.00027123,2]
[312202487,1705684351920,-903.19,0.00027123,2]
[312202488,1705684351929,-720.59,0.00027123,2]
[312202489,1705684351938,-790.36,0.00027123,2]
[312202490,1705684351946,-934.67,0.00027123,2]
[312202491,1705684351955,-1287.97,0.00027123,2]
[312202492,1705684351964,-605.92231847,0.00027123,2]
[312202493,1705684351973,-1004.82,0.00027123,2]
[312202494,1705684351982,-718.68,0.00027123,2]
[312202495,1705684351991,-500.0,0.00027123,2]
[312202496,1705684351999,-2888.65,0.00027123,2]
[312202497,1705684352008,-155.44,0.00027123,2]
[312202498,1705684352017,-767.72,0.00027123,2]
[312202499,1705684352025,-751.55,0.00027123,2]
[312202500,1705684352034,-632.74554647,0.00027123,2]
[312202501,1705684352043,-553.54,0.00027123,2]
[312202502,1705684352052,-1564.8,0.00027123,2]
[312202503,1705684352066,-2087.23,0.00027123,2]
[312202504,1705684352075,-635.0,0.00027123,2]
[312202505,1705684352084,-779.44,0.00027123,2]
[312202506,1705684352093,-692.16,0.00027123,2]
[312202507,1705684352102,-776.21,0.00027123,2]
[312202508,1705684352111,-801.0,0.00027123,2]
[312202509,1705684352119,-1305.59,0.00027123,2]
[312202510,1705684352128,-540.08,0.00027123,2]
[312202511,1705684352139,-657.66,0.00027123,2]
[312202512,1705684352149,-3922.54,0.00027123,2]
[312202513,1705684352157,-2489.47,0.00027123,2]
[312202514,1705684352166,-1067.45,0.00027123,5]
[312202515,1705684352175,-500.0,0.00027123,2]
[312202516,1705684352183,-574.27,0.00027123,2]
[312202517,1705684352192,-2247.96,0.00027123,2]
[312202518,1705684352200,-4625.17,0.00027123,2]
[312202519,1705684352210,-2955.88,0.00027123,2]
[312202520,1705684352219,-500.0,0.00027123,2]
[312202521,1705684352228,-491.15523732,0.00027123,2]
[312202522,1705684352237,-792.41,0.00027123,2]
[312202523,1705684352246,-3375.04,0.00027123,2]
[312202524,1705684352255,-1145.18,0.00027123,2]
[312202525,1705684352264,-1482.95,0.00027123,2]
[312202526,1705684352273,-642.03,0.00027123,2]
[312202527,1705684352282,-759.02,0.00027123,2]
[312202528,1705684352290,-3968.6,0.00027123,2]
[312202529,1705684352299,-519.9,0.00027123,2]
[312202530,1705684352308,-1025.72,0.00027123,2]
[312202531,1705684352317,-2480.63,0.00027123,2]
[312202532,1705684352326,-3098.92,0.00027123,2]
[312202533,1705684352335,-733.85,0.00027123,2]
[312202534,1705684352343,-500.0,0.00027123,2]
[312202535,1705684352352,-6021.86,0.00027123,2]
[312202536,1705684352369,-753.94,0.00027123,2]
[312202537,1705684352378,-174.09944494,0.00027123,2]
[312202538,1705684352386,-978.79,0.00027123,2]
[312202539,1705684352396,-4921.79,0.00027123,2]
[312202540,1705684352405,-8646.25,0.00027123,2]
[312202541,1705684352414,-682.8,0.00027123,2]
[312202542,1705684352423,-1163.38,0.00027123,2]
[312202543,1705684352432,-2479.77,0.00027123,2]
[312202544,1705684352441,-805.35,0.00027123,2]
[312202545,1705684352450,-500.0,0.00027123,2]
[312202546,1705684352459,-1096.89,0.00027123,2]
[312202547,1705684352468,-846.06,0.00027123,2]
[312202548,1705684352478,-522.24,0.00027123,2]
[312202549,1705684352487,-1247.86,0.00027123,2]
[312202550,1705684352496,-1521.64,0.00027123,2]
[312202551,1705684352505,-810.2,0.00027123,2]
[312202552,1705684352514,-1270.75,0.00027123,2]
[312202553,1705684352524,-648.61,0.00027123,2]
[312202554,1705684352533,-1158.73,0.00027123,2]
[312202555,1705684352542,-1375.2,0.00027123,2]
[312202556,1705684352551,-17751.82,0.00027123,2]
[312202557,1705684352562,-503.19,0.00027123,2]
[312202558,1705684352571,-1097.0,0.00027123,2]
[312202559,1705684352580,-1798.17,0.00027123,2]
[312202560,1705684352589,-1690.88,0.00027123,2]
[312202561,1705684352599,-662.05,0.00027123,2]
[312202562,1705684352608,-1315.74,0.00027123,2]
[312202563,1705684352617,-820.42,0.00027123,2]
[312202564,1705684352627,-2334.22,0.00027123,2]
[312202565,1705684352637,-918.43,0.00027123,2]
[312202566,1705684352646,-1931.87,0.00027123,2]
[312202567,1705684352655,-2683.86,0.00027123,2]
[312202568,1705684352665,-1614.07,0.00027123,2]
[312202569,1705684352675,-759.51,0.00027123,2]
[312202570,1705684352684,-4770.94,0.00027123,2]
[312202571,1705684352693,-1303.95,0.00027123,2]
[312202572,1705684352703,-658.2,0.00027123,2]
[312202573,1705684352712,-200.2,0.00027123,2]
[312202574,1705684352722,-234.32411328,0.00027123,2]
[312202575,1705684352731,-8690.7,0.00027123,2]
[312202576,1705684352741,-695.99,0.00027123,2]
[312202577,1705684352751,-6873.67,0.00027123,2]
[312202579,1705684352761,-500.0,0.00027123,2]
[312202580,1705684352771,-735.29,0.00027123,2]
[312202581,1705684352780,-519.42,0.00027123,2]
[312202582,1705684352790,-1295.46,0.00027123,2]
[312202583,1705684352800,-1149.53,0.00027123,2]
[312202584,1705684352813,-870.11,0.00027123,2]
[312202585,1705684352824,-500.0,0.00027123,2]
[312202586,1705684352833,-1617.17,0.00027123,2]
[312202587,1705684352843,-753.21,0.00027123,2]
[312202588,1705684352854,-982.23,0.00027123,2]
[312202589,1705684352863,-763.08,0.00027123,2]
[312202590,1705684352873,-1344.83,0.00027123,2]
[312202591,1705684352883,-512.26,0.00027123,2]
[312202592,1705684352892,-597.5,0.00027123,2]
[312202593,1705684352902,-569.27,0.00027123,2]
[312202594,1705684352912,-742.83,0.00027123,2]
[312202595,1705684352922,-2112.76,0.00027123,2]
[312202596,1705684352932,-500.0,0.00027123,2]
[312202597,1705684352942,-4987.06,0.00027123,2]
[312202598,1705684352953,-1184.32,0.00027123,2]
[312202599,1705684352962,-2960.59,0.00027123,2]
[312202600,1705684352972,-500.0,0.00027123,2]
[312202601,1705684352982,-15338.55,0.00027123,2]
[312202602,1705684352991,-594.36,0.00027123,2]
[312202603,1705684353001,-2166.93,0.00027123,2]
[312202604,1705684353010,-560.78546898,0.00027123,2]
[312202605,1705684353020,-500.0,0.00027123,2]
[312202606,1705684353030,-2307.01,0.00027123,2]
[312202607,1705684353039,-1238.0,0.00027123,2]
[312202608,1705684353048,-582.28,0.00027123,2]
[312202609,1705684353060,-861.16,0.00027123,2]
[312202610,1705684353069,-970.11,0.00027123,2]
[312202611,1705684353080,-1309.07,0.00027123,2]
[312202612,1705684353090,-1682.88,0.00027123,2]
[312202613,1705684353099,-687.38,0.00027123,2]
[312202614,1705684353109,-500.0,0.00027123,2]
[312202615,1705684353119,-500.0,0.00027123,2]
[312202616,1705684353128,-966.15,0.00027123,2]
[312202617,1705684353137,-1452.73,0.00027123,2]
[312202618,1705684353146,-543.77,0.00027123,2]
[312202619,1705684353157,-687.66,0.00027123,2]
[312202620,1705684353166,-789.87,0.00027123,2]
[312202621,1705684353175,-1600.24,0.00027123,2]
[312202622,1705684353184,-580.5,0.00027123,2]
[312202623,1705684353194,-724.98,0.00027123,2]
[312202624,1705684353203,-566.64,0.00027123,2]
[312202625,1705684353212,-314.98582806,0.00027123,2]
[312202626,1705684353222,-500.0,0.00027123,2]
[312202627,1705684353231,-1472.8,0.00027123,2]
[312202628,1705684353241,-2353.38,0.00027123,2]
[312202629,1705684353251,-982.82,0.00027123,2]
[312202630,1705684353260,-1029.65,0.00027123,2]
[312202631,1705684353270,-500.0,0.00027123,2]
[312202632,1705684353279,-1034.15,0.00027123,2]
[312202633,1705684353289,-1105.06,0.00027123,2]
[312202634,1705684353300,-511.82,0.00027123,2]
[312202635,1705684353311,-1045.7,0.00027123,2]
[312202636,1705684353321,-2707.99,0.00027123,2]
[312202637,1705684353330,-1777.84,0.00027123,2]
[312202638,1705684353341,-536.83,0.00027123,2]
[312202639,1705684353360,-10382.29,0.00027123,2]
[312202640,1705684353371,-1339.3,0.00027123,2]
[312202641,1705684353381,-907.28,0.00027123,2]
[312202642,1705684353390,-3979.15,0.00027123,2]
[312202643,1705684353400,-1150.48,0.00027123,2]
[312202644,1705684353410,-1514.36,0.00027123,2]
[312202645,1705684353420,-524.59,0.00027123,2]
[312202646,1705684353430,-778.28,0.00027123,2]
[312202647,1705684353440,-848.6,0.00027123,2]
[312202648,1705684353450,-5877.42,0.00027123,2]
[312202649,1705684353459,-635.87,0.00027123,2]
[312202650,1705684353469,-733.77,0.00027123,2]
[312202651,1705684353479,-2258.64,0.00027123,2]
[312202652,1705684353488,-963.32,0.00027123,2]
[312202653,1705684353498,-689.61,0.00027123,2]
[312202654,1705684353508,-3018.83,0.00027123,2]
[312202655,1705684353517,-649.04,0.00027123,2]
[312202656,1705684353527,-158.68816156,0.00027131,2]
[312202657,1705684353538,-50000.0,0.000272,2]
[312202658,1705684353548,-158.0,0.000272,2]
[312202659,1705684353562,-166.22,0.00027205,2]
[312202660,1705684353573,-150.0,0.00027205,2]
[312202661,1705684353583,-150.0,0.00027205,2]
[312202662,1705684353594,-150.0,0.00027205,2]
[312202663,1705684353604,-150.0,0.00027205,2]
[312202664,1705684353614,-1500.0,0.00027313,2]
[312202665,1705684353624,-158.68816156,0.00027337,2]
[312202666,1705684353634,-150.0,0.00027374,2]
[312202667,1705684353644,-150.0,0.00027374,2]
[312202668,1705684353654,-150.0,0.00027374,2]
[312202669,1705684353664,-150.0,0.00027374,2]
[312202670,1705684353673,-150.0,0.00027374,2]
[312202671,1705684353683,-150.0,0.00027374,2]
[312202672,1705684353693,-150.0,0.00027374,2]
[312202673,1705684353703,-287.79,0.00027374,2]
[312202674,1705684353713,-306.65248008,0.0002739,30]
[312202675,1705684353722,-151.0,0.00027397,7]
[312202676,1705684353733,-466.441857,0.00027397,7]
[312202677,1705684353743,-466.441857,0.00027397,7]
[312202678,1705684353754,-204.07049,0.00027397,7]
[312202679,1705684353765,-204.07049,0.00027397,7]
[312202680,1705684353775,-622.14,0.00027397,2]
[312202681,1705684353785,-200.0,0.00027397,5]
[312202682,1705684353796,-1000.0,0.00027397,2]
[312202683,1705684353807,-1000.0,0.00027397,2]
[312202684,1705684353817,-1000.0,0.00027397,2]
[312202685,1705684353827,-1000.0,0.00027397,2]
[312202686,1705684353838,-1000.0,0.00027397,2]
[312202687,1705684353848,-1000.0,0.00027397,2]
[312202688,1705684353858,-1000.0,0.00027397,2]
[312202689,1705684353867,-1000.0,0.00027397,2]
[312202690,1705684353877,-1000.0,0.00027397,2]
[312202691,1705684353887,-1000.0,0.00027397,2]
[312202692,1705684353897,-1000.0,0.00027397,2]
[312202693,1705684353906,-1000.0,0.00027397,2]
[312202694,1705684353917,-1000.0,0.00027397,2]
[312202695,1705684353926,-1000.0,0.00027397,2]
[312202696,1705684353936,-1000.0,0.00027397,2]
[312202697,1705684353946,-1000.0,0.00027397,2]
[312202698,1705684353956,-1000.0,0.00027397,2]
[312202699,1705684353966,-1000.0,0.00027397,2]
[312202700,1705684353975,-1000.0,0.00027397,2]
[312202701,1705684353985,-1000.0,0.00027397,2]
[312202702,1705684353995,-1000.0,0.00027397,2]
[312202703,1705684354006,-655.53,0.00027397,2]
[312202704,1705684354016,-655.53,0.00027397,2]
[312202705,1705684354026,-655.53,0.00027397,2]
[312202706,1705684354036,-655.53,0.00027397,2]
[312202707,1705684354047,-655.53,0.00027397,2]
[312202708,1705684354060,-655.53,0.00027397,2]
[312202709,1705684354071,-655.53,0.00027397,2]
[312202710,1705684354082,-655.53,0.00027397,2]
[312202711,1705684354093,-655.53,0.00027397,2]
[312202712,1705684354103,-655.53,0.00027397,2]
[312202713,1705684354113,-655.53,0.00027397,2]
[312202714,1705684354123,-655.53,0.00027397,2]
[312202715,1705684354132,-655.53,0.00027397,2]
[312202716,1705684354142,-655.53,0.00027397,2]
[312202717,1705684354162,-655.53,0.00027397,2]
[312202718,1705684354172,-655.53,0.00027397,2]
[312202719,1705684354182,-655.53,0.00027397,2]
[312202720,1705684354193,-655.53,0.00027397,2]
[312202721,1705684354204,-655.53,0.00027397,2]
[312202722,1705684354214,-655.53,0.00027397,2]
[312202723,1705684354225,-655.53,0.00027397,2]
[312202724,1705684354236,-500.0,0.00027397,30]
[312202725,1705684354247,-500.0,0.00027397,30]
[312202726,1705684354258,-547.56580555,0.00027397,30]
[312202727,1705684354268,-500.0,0.00027397,2]
[312202728,1705684354279,-500.0,0.00027397,2]
[312202729,1705684354293,-500.0,0.00027397,2]
[312202730,1705684354303,-500.0,0.00027397,2]
[312202731,1705684354315,-500.0,0.00027397,2]
[312202732,1705684354325,-500.0,0.00027397,2]
[312202733,1705684354335,-500.0,0.00027397,2]
[312202734,1705684354345,-500.0,0.00027397,2]
[312202735,1705684354355,-500.0,0.00027397,2]
[312202736,1705684354364,-500.0,0.00027397,2]
[312202737,1705684354374,-500.0,0.00027397,2]
[312202738,1705684354384,-448.05683017,0.00027397,2]
[312202739,1705684354393,-542.14,0.00027397,2]
[312202740,1705684354404,-500.0,0.00027397,2]
[312202741,1705684354414,-542.59,0.00027397,2]
[312202742,1705684354424,-263.13650289,0.00027397,2]
[312202743,1705684354434,-730.0,0.00027397,2]
[312202744,1705684354444,-528.39,0.00027397,2]
[312202745,1705684354454,-542.09,0.00027397,2]
[312202746,1705684354464,-532.60121848,0.00027397,2]
[312202747,1705684354475,-676.04,0.00027397,2]
[312202748,1705684354484,-808.53,0.00027397,2]
[312202749,1705684354494,-544.1,0.00027397,2]
[312202750,1705684354504,-807.4,0.00027397,2]
[312202751,1705684354514,-513.9,0.00027397,2]
[312202752,1705684354524,-1752.26,0.00027397,2]
[312202753,1705684354534,-544.80898944,0.00027397,30]
[312202754,1705684354544,-565.26,0.00027397,2]
[312202755,1705684354556,-241.98274892,0.00027397,2]
[312202756,1705684354566,-638.62,0.00027397,2]
[312202757,1705684354576,-702.27,0.00027397,2]
[312202758,1705684354586,-409.13964894,0.00027397,2]
[312202759,1705684354595,-546.25,0.00027397,2]
[312202760,1705684354605,-500.0,0.00027397,2]
[312202761,1705684354615,-500.0,0.00027397,2]
[312202762,1705684354625,-500.0,0.00027397,2]
[312202763,1705684354636,-155.0,0.00027397,2]
[312202764,1705684354646,-500.0,0.00027397,2]
[312202765,1705684354656,-1045.91,0.00027397,2]
[312202766,1705684354669,-500.0,0.00027397,2]
[312202767,1705684354686,-615.78,0.00027397,2]
[312202768,1705684354703,-546.84,0.00027397,2]
[312202769,1705684354722,-884.67,0.00027397,2]
[312202770,1705684354742,-679.98,0.00027397,2]
[312202771,1705684354761,-500.0,0.00027397,2]
[312202772,1705684354782,-602.03,0.00027397,2]
[312202773,1705684354802,-1736.83,0.00027397,2]
[312202774,1705684354823,-715.58,0.00027397,2]
[312202775,1705684354844,-648.18,0.00027397,2]
[312202776,1705684354860,-582.03,0.00027397,2]
[312202777,1705684354870,-581.09,0.00027397,2]
[312202778,1705684355119,-588.13,0.00027397,2]
[312202779,1705684355157,-800.73,0.00027397,2]
[312202780,1705684355168,-524.92,0.00027397,2]
[312202781,1705684355179,-1579.98,0.00027397,2]
[312202782,1705684355189,-2068.57,0.00027397,2]
[312202783,1705684355198,-2068.57,0.00027397,2]
[312202784,1705684355208,-2068.57,0.00027397,2]
[312202785,1705684355218,-2068.57,0.00027397,2]
[312202786,1705684355228,-2068.57,0.00027397,2]
[312202787,1705684355238,-2068.57,0.00027397,2]
[312202788,1705684355248,-2068.57,0.00027397,2]
[312202789,1705684355259,-2068.57,0.00027397,2]
[312202790,1705684355268,-2068.57,0.00027397,2]
[312202791,1705684355278,-2068.57,0.00027397,2]
[312202792,1705684355288,-2068.57,0.00027397,2]
[312202793,1705684355297,-2068.57,0.00027397,2]
[312202794,1705684355307,-2068.57,0.00027397,2]
[312202795,1705684355317,-2068.57,0.00027397,2]
[312202796,1705684355326,-729.35,0.00027397,2]
[312202797,1705684355336,-2068.57,0.00027397,2]
[312202798,1705684355345,-2068.57,0.00027397,2]
[312202799,1705684355355,-2068.57,0.00027397,2]
[312202800,1705684355364,-2068.57,0.00027397,2]
[312202801,1705684355374,-2068.57,0.00027397,2]
[312202802,1705684355383,-2068.57,0.00027397,2]
[312202803,1705684355393,-2068.57,0.00027397,2]
[312202804,1705684355402,-798.17,0.00027397,2]
[312202805,1705684355411,-510.07,0.00027397,2]
[312202806,1705684355420,-594.92,0.00027397,2]
[312202807,1705684355430,-789.92,0.00027397,2]
[312202808,1705684355439,-500.0,0.00027397,2]